fUST/lending_fUST_20260210
["ID","MTS","AMOUNT","RATE_DAILY","PERIOD"]
[404899100,1770663272056,-326.72922112,0.00023917,2]
[404899101,1770663272079,-179.49,0.000241,2]
[404899102,1770663272101,-300.0,0.00024158,2]
[404899103,1770663272123,-300.0,0.00024649,2]
[404899104,1770663272149,-500.0,0.00024649,2]
[404899105,1770663272171,-500.0,0.00024649,2]
[404899106,1770663272193,-500.0,0.00024649,2]
[404899107,1770663272216,-4382.80305816,0.00024899,2]
[404899108,1770663272242,-4522.2766184,0.00024999,2]
[404899109,1770663272268,-500.0,0.00024999,2]
[404899110,1770663272293,-500.0,0.00024999,2]
[404899111,1770663272316,-500.0,0.00024999,2]
[404899112,1770663272340,-500.0,0.00024999,2]
[404899113,1770663272364,-500.0,0.00024999,2]
[404899114,1770663272388,-280.97586713,0.00024999,2]
[404899115,1770663272413,-500.0,0.00024999,2]
[404899116,1770663272437,-500.0,0.00024999,2]
[404899117,1770663272459,-188.99968418,0.00024999,2]
[404899118,1770663272483,-500.0,0.00024999,2]
[404899119,1770663272508,-500.0,0.00024999,2]
[404899120,1770663272644,-500.0,0.00024999,2]
[404899121,1770663272670,-500.0,0.00024999,2]
[404899122,1770663272694,-500.0,0.00024999,2]
[404899123,1770663272718,-500.0,0.00024999,2]
[404899124,1770663272742,-500.0,0.00024999,2]
[404899125,1770663272766,-500.0,0.00024999,2]
[404899126,1770663272789,-500.0,0.00024999,2]
[404899127,1770663272812,-500.0,0.00024999,2]
[404899128,1770663272834,-500.0,0.00024999,2]
[404899129,1770663272858,-500.0,0.00024999,2]
[404899130,1770663272881,-500.0,0.00024999,2]
[404899131,1770663272905,-500.0,0.00024999,2]
[404899132,1770663272929,-500.0,0.00024999,2]
[404899133,1770663272954,-500.0,0.00024999,2]
[404899134,1770663272977,-500.0,0.00024999,2]
[404899135,1770663273006,-500.0,0.00024999,2]
[404899136,1770663273031,-485.31275343,0.00024999,2]
[404899137,1770663273056,-500.0,0.00024999,2]
[404899138,1770663273082,-500.0,0.00024999,2]
[404899139,1770663273106,-500.0,0.00024999,2]
[404899140,1770663273130,-500.0,0.00024999,2]
[404899141,1770663273153,-500.0,0.00024999,2]
[404899142,1770663273176,-500.0,0.00024999,2]
[404899143,1770663273198,-500.0,0.00024999,2]
[404899144,1770663273220,-500.0,0.00024999,2]
[404899145,1770663273242,-500.0,0.00024999,2]
[404899146,1770663273269,-500.0,0.00024999,2]
[404899147,1770663273293,-500.0,0.00024999,2]
[404899148,1770663273316,-500.0,0.00024999,2]
[404899149,1770663273340,-500.0,0.00024999,2]
[404899150,1770663273364,-500.0,0.00024999,2]
[404899151,1770663273387,-500.0,0.00024999,2]
[404899152,1770663273410,-486.41592007,0.00024999,2]
[404899153,1770663273433,-500.0,0.00024999,2]
[404899154,1770663273457,-500.0,0.00024999,2]
[404899155,1770663273480,-500.0,0.00024999,2]
[404899156,1770663273506,-500.0,0.00024999,2]
[404899157,1770663273529,-499.99999999,0.00024999,2]
[404899158,1770663273553,-500.0,0.00024999,2]
[404899159,1770663273579,-500.0,0.00024999,2]
[404899160,1770663273604,-500.0,0.00024999,2]
[404899161,1770663273629,-500.0,0.00024999,2]
[404899162,1770663273659,-500.0,0.00024999,2]
[404899163,1770663273683,-500.0,0.00024999,2]
[404899164,1770663273706,-500.0,0.00024999,2]
[404899165,1770663273731,-500.0,0.00024999,2]
[404899166,1770663273757,-500.0,0.00024999,2]
[404899167,1770663273780,-500.0,0.00024999,2]
[404899168,1770663273803,-500.0,0.00024999,2]
[404899169,1770663273825,-500.0,0.00024999,2]
[404899170,1770663273859,-500.0,0.00024999,2]
[404899171,1770663273886,-500.0,0.00024999,2]
[404899172,1770663273911,-262.80678218,0.00024999,2]
[404899173,1770663273936,-500.0,0.00024999,2]
[404899174,1770663273959,-500.0,0.00024999,2]
[404899175,1770663273983,-500.0,0.00024999,2]
[404899176,1770663274011,-500.0,0.00024999,2]
[404899177,1770663274038,-528.86559205,0.00024999,2]
[404899178,1770663274063,-177.0,0.0002556,2]
[404899179,1770663274088,-420.0,0.00026194,2]
[404899180,1770663274111,-500.0,0.00026396,2]
[404899181,1770663274136,-204.0,0.0002756,2]
[404899182,1770663274159,-587.0,0.00028401,2]
[404899183,1770663274181,-1636.55590425,0.0002899,2]
[404899184,1770663274204,-4339.82416216,0.0002899,2]
[404899185,1770663274227,-336740.94443688,0.00029,10]
[404899188,1770663303903,647.09803383,0.00013699,2]
[404899189,1770663307634,-5000.0,0.0002871,2]
[404899190,1770663307664,-300.0,0.00028889,2]
[404899191,1770663307694,-300.0,0.00028889,2]
[404899192,1770663307723,-300.0,0.00028889,2]
[404899193,1770663307753,-300.0,0.00028889,2]
[404899194,1770663307784,-14227.76587363,0.0002889,2]
[404899195,1770663307814,-882.42,0.0002899,10]
[404899196,1770663307842,-46532.96876469,0.00029,10]
[404899197,1770663307874,-1041.66666667,0.00029,10]
[404899198,1770663307899,-151.0,0.00029,7]
[404899199,1770663307931,-2238.97,0.00029,2]
[404899200,1770663307966,-609.20846012,0.00029353,30]
[404899201,1770663307998,-231.0,0.0002956,2]
[404899202,1770663308028,-2723.57768648,0.0003,2]
[404899203,1770663309910,250.0,0.00029548,8]
[404899204,1770663309991,500.0,0.00013699,2]
[404899205,1770663310970,370.0,0.00029548,8]
[404899206,1770663312170,372.0,0.00029548,8]
[404899207,1770663313190,248.0,0.00029548,8]
[404899208,1770663313218,500.0,0.00013699,2]
[404899209,1770663313255,171.64953821,0.00014247,2]
[404899210,1770663321069,500.0,0.00013273,2]
[404899211,1770663321135,500.0,0.00013699,2]
[404899212,1770663321748,500.0,0.00013273,2]
[404899213,1770663321799,1000.0,0.00013821,2]
[404899214,1770663321857,1500.0,0.00014368,2]
[404899215,1770663321887,500.88003883,0.00013273,2]
[404899216,1770663321916,1571.00437905,0.00014916,2]
[404899217,1770663322583,500.0,0.00013273,2]
[404899218,1770663326610,500.0,0.00013273,2]
[404899219,1770663327323,503.08289833,0.00013273,2]
[404899220,1770663328775,500.0,0.00013273,2]
[404899221,1770663332596,500.0,0.00013273,2]
[404899222,1770663335882,500.0,0.00013273,2]
[404899223,1770663335931,504.68662575,0.00013821,2]
[404899224,1770663348452,500.0,0.00013699,2]
[404899225,1770663370905,500.0,0.00024648,2]
[404899226,1770663374711,1554.64782968,0.00028989,2]
[404899227,1770663383769,259.19344376,0.00028999,2]
[404899228,1770663384373,500.74819225,0.00013699,2]
[404899229,1770663384532,643.52304824,0.00013699,2]
[404899231,1770663385376,500.0,0.00025204,2]
[404899232,1770663385411,500.0,0.00025204,2]
[404899233,1770663385442,500.0,0.00025204,2]
[404899234,1770663385474,500.0,0.00025204,2]
[404899235,1770663387398,500.0,0.00013273,2]
[404899236,1770663388013,500.0,0.00013699,2]
[404899237,1770663388753,500.0,0.00013273,2]
[404899238,1770663388940,500.0,0.00013273,2]
[404899239,1770663389000,1000.0,0.00013821,2]
[404899240,1770663389046,1500.0,0.00014368,2]
[404899241,1770663389104,500.0,0.00014916,2]
[404899242,1770663392420,500.0,0.00013699,2]
[404899243,1770663392722,501.62850291,0.00013699,2]
[404899244,1770663392842,498.49065779,0.00025204,2]
[404899245,1770663392879,500.0,0.00025204,2]
[404899246,1770663392910,211.88739361,0.00025204,2]
[404899247,1770663396047,500.0,0.00013273,2]
[404899248,1770663396313,500.0,0.00013273,2]
[404899249,1770663429942,500.0,0.00013273,2]
[404899250,1770663433841,500.0,0.00013273,2]
[404899252,1770663480004,-500.0,0.00024648,2]
[404899253,1770663480030,-300.0,0.00031172,3]
[404899254,1770663480055,-420.0,0.00031172,3]
[404899255,1770663480078,-300.0,0.00031554,2]
[404899256,1770663480103,-258.0,0.0003156,2]
[404899257,1770663480127,-153.65998205,0.00031722,2]
[404899258,1770663480151,-590.3134208,0.00032144,2]
[404899259,1770663480176,-400.0,0.00032969,2]
[404899260,1770663480200,-2000.0,0.0003297,2]
[404899261,1770663480225,-2000.0,0.0003297,2]
[404899262,1770663480249,-2000.0,0.0003297,2]
[404899263,1770663480273,-2000.0,0.0003297,2]
[404899264,1770663480297,-2000.0,0.0003297,2]
[404899265,1770663480322,-2000.0,0.0003297,2]
[404899266,1770663480345,-2000.0,0.0003297,2]
[404899267,1770663480369,-532.24359328,0.0003297,2]
[404899268,1770663480393,-542.47802027,0.0003298,2]
[404899269,1770663480417,-1600.0,0.00032989,3]
[404899270,1770663480443,-640.69873562,0.00032989,7]
[404899271,1770663480469,-529.20075358,0.00032989,7]
[404899272,1770663480493,-643.95411498,0.00032989,7]
[404899273,1770663480517,-151.0,0.0003299,31]
[404899274,1770663480541,-151.0,0.0003299,31]
[404899275,1770663480565,-4882.30218243,0.0003299,2]
[404899276,1770663480712,-151.0,0.0003299,31]
[404899277,1770663480736,-13959.9197462,0.0003299,2]
[404899278,1770663480760,-181.43541064,0.00032999,7]
[404899279,1770663480783,-159112.79404015,0.00033,120]
[404899288,1770663485429,-400.0,0.00032999,2]
[404899290,1770663485457,-199600.0,0.00033,120]
[404899307,1770663543899,500.0,0.00013699,2]
[404899308,1770663543929,500.0,0.00013699,2]
[404899311,1770663604752,183.0,0.000195,2]
[404899312,1770663605211,183.0,0.000195,2]
[404899313,1770663605669,183.0,0.000195,2]
[404899314,1770663606230,183.0,0.000195,2]
[404899315,1770663606717,183.0,0.000195,2]
[404899316,1770663607173,183.0,0.000195,2]
[404899317,1770663607740,183.0,0.000195,2]
[404899318,1770663608317,183.0,0.000195,2]
[404899319,1770663608785,183.0,0.000195,2]
[404899320,1770663609352,183.0,0.000195,2]
[404899321,1770663609859,183.0,0.000195,2]
[404899322,1770663610524,183.0,0.000195,2]
[404899323,1770663611075,183.0,0.000195,2]
[404899324,1770663611651,183.0,0.000195,2]
[404899325,1770663612124,183.0,0.000195,2]
[404899326,1770663612715,183.0,0.000195,2]
[404899327,1770663612833,500.0,0.00013273,2]
[404899328,1770663613277,183.0,0.000195,2]
[404899329,1770663613824,183.0,0.000195,2]
[404899330,1770663614379,183.0,0.000195,2]
[404899331,1770663614921,183.0,0.000195,2]
[404899332,1770663615467,183.0,0.000195,2]
[404899333,1770663616039,183.0,0.000195,2]
[404899334,1770663616587,183.0,0.000195,2]
[404899335,1770663617060,183.0,0.000195,2]
[404899336,1770663617607,183.0,0.000195,2]
[404899337,1770663618154,183.0,0.000195,2]
[404899338,1770663618670,183.0,0.000195,2]
[404899339,1770663619130,183.0,0.000195,2]
[404899340,1770663619697,183.0,0.000195,2]
[404899341,1770663620349,183.0,0.000195,2]
[404899342,1770663620905,183.0,0.000195,2]
[404899343,1770663621379,183.0,0.000195,2]
[404899344,1770663621990,183.0,0.000195,2]
[404899345,1770663622560,183.0,0.000195,2]
[404899346,1770663623746,183.0,0.000195,2]
[404899347,1770663624325,183.0,0.000195,2]
[404899348,1770663624641,500.0,0.00013273,2]
[404899349,1770663624884,183.0,0.000195,2]
[404899350,1770663625277,183.0,0.000195,2]
[404899351,1770663625311,500.0,0.00013273,2]
[404899352,1770663625847,183.0,0.000195,2]
[404899353,1770663626502,183.0,0.000195,2]
[404899354,1770663627065,183.0,0.000195,2]
[404899355,1770663627719,183.0,0.000195,2]
[404899356,1770663628457,183.0,0.000195,2]
[404899357,1770663629021,183.0,0.000195,2]
[404899358,1770663629588,183.0,0.000195,2]
[404899359,1770663630044,183.0,0.000195,2]
[404899360,1770663630610,183.0,0.000195,2]
[404899361,1770663631144,183.0,0.000195,2]
[404899362,1770663631618,183.0,0.000195,2]
[404899363,1770663632167,183.0,0.000195,2]
[404899364,1770663635025,200.0,0.00027,120]
[404899366,1770663668693,501.08741213,0.00021918,2]
[404899367,1770663669067,500.0,0.00013273,2]
[404899372,1770663715107,602.95161427,0.00013699,2]
[404899374,1770663785274,160.9968606,0.00013699,2]
[404899529,1770663914509,500.0,0.00013273,2]
[404899626,1770663970118,500.0,0.00014247,2]
[404899627,1770663970191,500.0,0.00013699,2]
[404899628,1770663972453,500.0,0.00013273,2]
[404899629,1770663988461,500.0,0.00013699,2]
[404899630,1770663988497,344.24720649,0.00014247,2]
[404899631,1770663994194,506.72549457,0.00013699,2]
[404899632,1770663994391,498.48854644,0.00013699,2]
[404899633,1770664001969,189.88697358,0.00013699,2]
[404899656,1770664024460,210.44628504,0.00013273,2]
[404899657,1770664048123,-500.0,0.00025205,2]
[404899658,1770664048145,-434.79751625,0.00025205,2]
[404899659,1770664048164,-142.39548558,0.00025205,2]
[404899660,1770664143694,351.80162554,0.00013699,2]
[404899661,1770664155094,-7.60451442,0.00025205,2]
[404899662,1770664155114,-164.81325287,0.00025508,2]
[404899663,1770664155133,-177.0,0.00027205,2]
[404899664,1770664155155,-430.66531653,0.00028643,2]
[404899665,1770664155177,-204.0,0.00029205,2]
[404899666,1770664155198,-230.5111138,0.00029706,2]
[404899667,1770664155219,-296.66385517,0.00030082,2]
[404899668,1770664155243,-295.12228174,0.0003015,2]
[404899669,1770664155264,-200.0,0.00030248,2]
[404899670,1770664155285,-1600.0,0.00030695,2]
[404899671,1770664155305,-400.0,0.00030941,2]
[404899672,1770664155325,-1640.3162002,0.00030942,2]
[404899673,1770664155344,-231.0,0.00031205,2]
[404899674,1770664155364,-200.0,0.000323,120]
[404899675,1770664155384,-527.40240919,0.00032369,2]
[404899676,1770664155403,-186.76025401,0.00032826,2]
[404899677,1770664155423,-400.0,0.00032879,2]
[404899678,1770664155442,-2000.0,0.0003288,2]
[404899679,1770664155462,-2000.0,0.0003288,2]
[404899680,1770664155481,-531.6,0.0003288,2]
[404899681,1770664155501,-151.0,0.0003288,2]
[404899682,1770664155521,-151.0,0.0003288,2]
[404899683,1770664155542,-151.0,0.0003288,2]
[404899684,1770664155562,-151.0,0.0003288,2]
[404899685,1770664155582,-151.0,0.0003288,2]
[404899686,1770664155601,-173.49232412,0.0003288,2]
[404899687,1770664155620,-3834.95267589,0.000329,2]
[404899688,1770664155640,-956.93139491,0.00033,120]
[404899689,1770664166084,-27093.29756,0.00033,120]
[404899690,1770664170133,-46889.95649663,0.00033,120]
[404899691,1770664170154,-1041.66666667,0.00033,120]
[404899692,1770664170174,-269.25,0.00033,2]
[404899693,1770664170193,-2240.0,0.00033198,3]
[404899694,1770664170213,-258.0,0.00033205,120]
[404899695,1770664170233,-181.0,0.00033315,3]
[404899696,1770664170257,-250.0,0.00033692,2]
[404899697,1770664170277,-200.0,0.00035174,2]
[404899698,1770664170297,-285.0,0.00035205,120]
[404899699,1770664170316,-486.0,0.00035331,2]
[404899700,1770664170336,-2060.0,0.00035904,3]
[404899701,1770664171614,1041.69908996,0.00031849,2]
[404899702,1770664209866,219.0,0.0002589,2]
[404899703,1770664217082,309.37009823,0.00013699,2]
[404899704,1770664223491,552.85532759,0.00013273,2]
[404899730,1770664231881,-180.0,0.00036661,2]
[404899732,1770664231893,-500.0,0.00036661,2]
[404899734,1770664231903,-209.40437684,0.00036661,2]
[404899736,1770664231914,-170.8169302,0.00036661,2]
[404899739,1770664231926,-79.1830698,0.00036661,2]
[404899741,1770664231935,-500.0,0.00036661,2]
[404899743,1770664231945,-250.0,0.00036661,2]
[404899745,1770664231956,-217.15233878,0.00036661,2]
[404899747,1770664231966,-500.0,0.00036661,2]
[404899749,1770664231975,-250.0,0.00036661,2]
[404899751,1770664231985,-225.18697532,0.00036661,2]
[404899753,1770664231994,-500.0,0.00036661,2]
[404899755,1770664232003,-250.0,0.00036661,2]
[404899757,1770664232013,-233.51889341,0.00036661,2]
[404899758,1770664232022,-500.0,0.00036661,2]
[404899761,1770664232037,-261.67202248,0.00036661,2]
[404899763,1770664232047,-250.0,0.00036661,2]
[404899765,1770664232057,-242.15909246,0.00036661,2]
[404899767,1770664232067,-500.0,0.00036661,2]
[404899769,1770664232078,-250.0,0.00036661,2]
[404899772,1770664232091,-251.11897888,0.00036661,2]
[404899774,1770664232100,-500.0,0.00036661,2]
[404899776,1770664232109,-250.0,0.00036661,2]
[404899778,1770664232119,-260.4103811,0.00036661,2]
[404899780,1770664232133,-500.0,0.00036661,2]
[404899782,1770664232142,-250.0,0.00036661,2]
[404899784,1770664232152,-270.0455652,0.00036661,2]
[404899786,1770664232161,-500.0,0.00036661,2]
[404899788,1770664232173,-159.39164934,0.00036661,2]
[404899790,1770664232183,-500.0,0.00036661,2]
[404899792,1770664232193,-250.0,0.00036661,2]
[404899794,1770664232203,-280.03725112,0.00036661,2]
[404899796,1770664232213,-500.0,0.00036661,2]
[404899798,1770664232222,-500.0,0.00036661,2]
[404899800,1770664232232,-250.0,0.00036661,2]
[404899802,1770664232241,-290.39862941,0.00036661,2]
[404899804,1770664232250,-500.0,0.00036661,2]
[404899806,1770664232260,-250.0,0.00036661,2]
[404899808,1770664232269,-301.1433787,0.00036661,2]
[404899810,1770664232279,-250.0,0.00036661,2]
[404899813,1770664232289,-500.0,0.00036661,2]
[404899815,1770664232298,-500.0,0.00036661,2]
[404899817,1770664232308,-469.227774,0.00036661,2]
[404899819,1770664232321,-30.772226,0.00036661,2]
[404899821,1770664232330,-500.0,0.00036661,2]
[404899823,1770664232339,-500.0,0.00036661,2]
[404899825,1770664232348,-500.0,0.00036661,2]
[404899827,1770664232358,-500.0,0.00036661,2]
[404899829,1770664232366,-250.0,0.00036661,2]
[404899831,1770664232378,-500.0,0.00036661,2]
[404899833,1770664232387,-250.0,0.00036661,2]
[404899835,1770664232396,-250.0,0.00036661,2]
[404899837,1770664232406,-250.0,0.00036661,2]
[404899839,1770664232415,-250.0,0.00036661,2]
[404899841,1770664232425,-3584.2202286,0.00036672,3]
[404899843,1770664232438,-13302.40954539,0.00036705,2]
[404899917,1770664238034,-250.0,0.00036661,2]
[404899919,1770664238044,-250.0,0.00036661,2]
[404899921,1770664238055,-2477.46025251,0.00036705,2]
[404899923,1770664238065,-998.13,0.000372,14]
[404899925,1770664238074,-150.0,0.000373,15]
[404899927,1770664238084,-300.0,0.000376,15]
[404899929,1770664238093,-500.0,0.000379,15]
[404899931,1770664238103,-486.17361372,0.00038,120]
[404899933,1770664238112,-1000.0,0.000382,15]
[404899935,1770664238122,-1000.0,0.000385,15]
[404899937,1770664238132,-1000.0,0.000388,15]
[404899939,1770664238142,-1000.0,0.000391,15]
[404899941,1770664238151,-133.95144385,0.00039116,11]
[404899943,1770664238163,-578.04855615,0.00039116,11]
[404899945,1770664238172,-401.0,0.00039295,11]
[404899947,1770664238181,-180.0,0.000394,2]
[404899949,1770664238190,-1000.0,0.000394,15]
[404899951,1770664238199,-3584.2202286,0.0003959,3]
[404899953,1770664238208,-5984.40556569,0.000396,2]
[404899954,1770664238217,-6711.92874255,0.000399,2]
[404899956,1770664238227,-17332.89318678,0.0003999,2]
[404900328,1770664247751,-71.66757,0.0003999,2]
[404900329,1770664247761,-3925.27100608,0.0003999,3]
[404900330,1770664247988,-10230.82729755,0.0003999,3]
[404900331,1770664248001,-1231.20210108,0.0003999,3]
[404900332,1770664248014,-447.811469,0.0003999,3]
[404900335,1770664266824,500.0,0.00013699,2]
[404900336,1770664266889,503.18327958,0.00014247,2]
[404900337,1770664296664,309.23010953,0.00013273,2]
[404900338,1770664338360,711.47783842,0.00035724,30]
[404900352,1770664504646,190.76989047,0.00013273,2]
[404900370,1770664593864,500.0,0.00013699,2]
[404900371,1770664593908,611.48591482,0.00014247,2]
[404900437,1770664930974,5744.0,0.00030137,120]
[404900443,1770665107157,285.99235154,0.00013273,2]
[404900444,1770665107187,391.14500463,0.00013273,2]
[404900445,1770665108974,500.0,0.00013273,2]
[404900446,1770665119120,337.83295742,0.00013699,2]
[404900447,1770665123941,500.0,0.00013273,2]
[404900448,1770665123979,1000.0,0.00013821,2]
[404900449,1770665136164,500.0,0.00014247,2]
[404900450,1770665136211,500.0,0.00013699,2]
[404900459,1770665189245,438.16441978,0.00013699,2]
[404900460,1770665191510,500.0,0.00013699,2]
[404900461,1770665196130,-320.39698028,0.00023619,2]
[404900463,1770665220748,5000.0,0.000231,2]
[404900465,1770665228840,5000.0,0.000231,2]
[404900466,1770665236715,316.0,0.000231,2]
[404900469,1770665250081,-3642.01347538,0.00023383,2]
[404900470,1770665250102,-300.0,0.00023618,2]
[404900471,1770665250123,-6430.27751061,0.00023619,2]
[404900472,1770665250151,-150.0,0.00023719,2]
[404900473,1770665250171,-1200.0,0.00023788,2]
[404900474,1770665250193,-265.0,0.00024127,2]
[404900475,1770665250317,-821.0,0.00025121,2]
[404900476,1770665250339,-177.0,0.00025719,2]
[404900477,1770665250360,-1200.0,0.00025921,2]
[404900478,1770665250380,-204.0,0.00027719,2]
[404900479,1770665250403,-1091.03350571,0.00028719,2]
[404900480,1770665250424,-984.92669007,0.00029417,2]
[404900494,1770665350107,-6065.56914904,0.0002465,2]
[404900495,1770665350127,-500.0,0.00027789,2]
[404900496,1770665350148,-2370.65690136,0.00029417,2]
[404900497,1770665350170,-427.57351119,0.00029516,2]
[404900498,1770665350190,-500.0,0.00029516,2]
[404900499,1770665350211,-500.0,0.00029516,2]
[404900500,1770665350232,-500.0,0.00029516,2]
[404900501,1770665350253,-500.0,0.00029516,2]
[404900502,1770665350274,-500.0,0.00029516,2]
[404900503,1770665350295,-500.0,0.00029516,2]
[404900504,1770665350315,-500.0,0.00029516,2]
[404900505,1770665350335,-500.0,0.00029516,2]
[404900506,1770665350356,-500.0,0.00029516,2]
[404900507,1770665350377,-500.0,0.00029516,2]
[404900508,1770665350395,-500.0,0.00029516,2]
[404900509,1770665350417,-500.0,0.00029516,2]
[404900510,1770665350437,-500.0,0.00029516,2]
[404900511,1770665350458,-500.0,0.00029516,2]
[404900512,1770665350482,-500.0,0.00029516,2]
[404900513,1770665350502,-277.0211715,0.00029516,2]
[404900514,1770665350524,-500.0,0.00029516,2]
[404900515,1770665350546,-500.0,0.00029516,2]
[404900516,1770665350572,-500.0,0.00029516,2]
[404900517,1770665350592,-500.0,0.00029516,2]
[404900518,1770665350615,-200.25171543,0.00029516,2]
[404900519,1770665350635,-500.0,0.00029516,2]
[404900520,1770665350656,-500.0,0.00029516,2]
[404900521,1770665350677,-500.0,0.00029516,2]
[404900522,1770665350697,-500.0,0.00029516,2]
[404900523,1770665350719,-500.0,0.00029516,2]
[404900524,1770665350739,-500.0,0.00029516,2]
[404900525,1770665350760,-500.0,0.00029516,2]
[404900526,1770665350780,-500.0,0.00029516,2]
[404900527,1770665350801,-500.0,0.00029516,2]
[404900528,1770665350822,-500.0,0.00029516,2]
[404900529,1770665350842,-500.0,0.00029516,2]
[404900530,1770665350862,-500.0,0.00029516,2]
[404900531,1770665350883,-500.0,0.00029516,2]
[404900532,1770665350904,-500.0,0.00029516,2]
[404900533,1770665350925,-500.0,0.00029516,2]
[404900534,1770665350944,-500.0,0.00029516,2]
[404900535,1770665350965,-500.0,0.00029516,2]
[404900536,1770665350987,-500.0,0.00029516,2]
[404900537,1770665351007,-500.0,0.00029516,2]
[404900538,1770665351027,-500.0,0.00029516,2]
[404900539,1770665351049,-500.0,0.00029516,2]
[404900540,1770665351072,-500.0,0.00029516,2]
[404900541,1770665351093,-227.05724932,0.00029516,2]
[404900542,1770665351113,-500.0,0.00029516,2]
[404900543,1770665351133,-500.0,0.00029516,2]
[404900544,1770665351154,-500.0,0.00029516,2]
[404900545,1770665351178,-500.0,0.00029516,2]
[404900546,1770665351202,-500.0,0.00029516,2]
[404900547,1770665351223,-500.0,0.00029516,2]
[404900548,1770665351247,-466.06244764,0.00029516,2]
[404900549,1770665351269,-160.92792701,0.00029516,2]
[404900550,1770665351291,-500.0,0.00029516,2]
[404900551,1770665351313,-500.0,0.00029516,2]
[404900552,1770665351336,-500.0,0.00029516,2]
[404900553,1770665351358,-500.0,0.00029516,2]
[404900554,1770665351379,-500.0,0.00029516,2]
[404900555,1770665351400,-500.0,0.00029516,2]
[404900556,1770665351422,-500.0,0.00029516,2]
[404900557,1770665351444,-500.0,0.00029516,2]
[404900558,1770665351465,-500.0,0.00029516,2]
[404900559,1770665351485,-500.0,0.00029516,2]
[404900560,1770665351507,-500.0,0.00029516,2]
[404900561,1770665351535,-500.0,0.00029516,2]
[404900562,1770665351557,-580.50774938,0.00029516,2]
[404900563,1770665351577,-500.0,0.00029516,2]
[404900564,1770665351599,-500.0,0.00029516,2]
[404900565,1770665351620,-500.0,0.00029516,2]
[404900566,1770665351641,-500.0,0.00029516,2]
[404900567,1770665351663,-500.0,0.00029516,2]
[404900568,1770665351681,-162.03960009,0.00029516,2]
[404900569,1770665351703,-500.0,0.00029516,2]
[404900570,1770665351724,-500.0,0.00029516,2]
[404900571,1770665351746,-329.56249418,0.00029516,2]
[404900572,1770665351768,-500.0,0.00029516,2]
[404900573,1770665351788,-305.07749376,0.00029516,2]
[404900574,1770665351808,-500.0,0.00029516,2]
[404900575,1770665351828,-500.0,0.00029516,2]
[404900576,1770665351848,-500.0,0.00029516,2]
[404900577,1770665351867,-231.0,0.00029719,2]
[404900578,1770665351978,-1092.08697523,0.00031849,2]
[404900579,1770665351999,-388.82,0.00032611,2]
[404900580,1770665352017,-200.0,0.00033717,2]
[404900581,1770665352038,-464.88971186,0.00034155,5]